Cogmind - Beta 13 @@@ ROGUE MODE // 2024.04.16 @ 03:42:03 Player: AntinDisguise Result: Destroyed by G-47 Trooper with Particle Gun Performance ------------- Evolutions (2) 1000 Regions Visited (3) 600 Robots Destroyed (42) 210 Value Destroyed (832) 832 Prototype IDs (2) 40 Alien Tech Used (0) 0 Bonus (56) 56 TOTAL SCORE: 2738 Bonus ------- High Alert Combat Kills 56 Cogmind --------- Core Integrity 0/550 Matter 6/300 Energy 100/100 System Corruption 0% Temperature Cool (9) Movement Core (350) Ox6 Location -8/Materials Parts ------- > --- POWER (2) -------- (None) > --- PROPULSION (3) --- (None) > --- UTILITY (4) ------ Large Storage Unit > --- WEAPON (2) ------- (None) > --- INVENTORY (15) --- Armored Treads Weight Redist. System Shock Rifle Light EM Pulse Cannon Beam Cannon Light Cannon Mini Grenade Launcher Mini Grenade Launcher Mini Grenade Launcher Missile Launcher Peak State ------------ > --- POWER ------------ Improved Ion Engine Light Nuclear Core > --- PROPULSION ------- Compact Wheel Compact Wheel > --- UTILITY ---------- Heat Sink Large Storage Unit > --- WEAPON ----------- Light Cannon Mini Grenade Launcher > --- INVENTORY -------- Ion Engine Light Treads Light Treads Light Treads Small Laser Beam Cannon Mini Grenade Launcher Mini Grenade Launcher Mini Grenade Launcher [Rating: 13] Favorites ----------- Power Ion Engine Engine Ion Engine Power Core Light Nuclear Core Propulsion Compact Wheel Treads Light Treads Wheel Compact Wheel Utility Heat Sink Device Heat Sink Storage Small Storage Unit Weapon Assault Rifle Energy Gun Small Laser Ballistic Gun Assault Rifle Ballistic Cannon Light Cannon Launcher Mini Grenade Launcher Special Weapon Plasma Cutter Build | -11 -10 -9 -8 ------- Run | Yrd Mat Mat Mat Slots Evolved 4 | . . 2 2 Power 1 | . . 1 . Propulsion 1 | . . . 1 Utility 2 | . . 1 1 Weapon . | . . . . Parts Attached 27 | 6 10 9 2 Power 5 | 1 . 4 . Engine 4 | 1 . 3 . Core 1 | . . 1 . Reactor . | . . . . Propulsion 11 | 2 6 2 1 Treads 3 | . . 2 1 Leg . | . . . . Wheel 8 | 2 6 . . Hover . | . . . . Flight . | . . . . Utility 4 | 1 2 1 . Device 2 | . 1 1 . Storage 2 | 1 1 . . Processor . | . . . . Hackware . | . . . . Protection . | . . . . Artifact . | . . . . Weapon 7 | 2 2 2 1 Energy Gun 1 | . 1 . . Energy Cannon . | . . . . Ballistic Gun 2 | 2 . . . Ballistic Cannon 1 | . 1 . . Launcher 2 | . . 2 . Special Weapon 1 | . . . 1 Impact Weapon . | . . . . Slashing Weapon . | . . . . Piercing Weapon . | . . . . Special Melee Weapon . | . . . . Unidentified Prototypes . | . . . . Parts Lost 13 | . 2 8 3 Power 3 | . . 3 . Propulsion 5 | . 1 3 1 Utility 2 | . . 1 1 Weapon 3 | . 1 1 1 Highest Loss Streak 4 | . 2 4 2 To Critical Strikes . | . . . . Average Slot Usage (%) 81 | . 96 82 25 Engine 10 | . 14 8 . Core 1 | . . 6 . Treads 2 | . . 3 6 Wheel 20 | . 27 17 . Device 11 | . 12 14 4 Storage 12 | . 14 11 9 Energy Gun 3 | . 5 1 . Ballistic Gun 11 | . 20 . . Ballistic Cannon 2 | . . 6 . Launcher 4 | . . 13 4 Naked Turns . | . . . . Heaviest Build 37 | 14 30 37 22 Greatest Support 40 | 20 32 40 20 Greatest Overweight (x) 7 | . 1 7 6 Average Overweight (x) . | . . . 1 Largest Inventory Capacity 15 | 8 15 15 15 Average Capacity 11 | 6 8 15 15 Most Carried 10 | 4 6 9 10 Average Carried 5 | 2 3 7 6 Final Capacity 15 | 8 15 15 15 Final Carried 10 | 2 5 6 10 Class Distribution -------------------- 63% | Mutant 36% | Scavenger-Mutant Dominant Class ---------------- Mutant | -10/Materials Scavenger-Mutant | -9/Materials Mutant | -8/Materials Resources | -11 -10 -9 -8 ----------- Run | Yrd Mat Mat Mat Matter Collected 803 | 227 494 82 . Remotely . | . . . . Salvage Created 989 | . 712 277 . Parts 69 | . 43 26 . Haulers Intercepted 2 | . 2 . . Recyclers Shooed 1 | . 1 . . Parts Field Recycled . | . . . . Retrieved Matter . | . . . . Parts Self-Destructed . | . . . . Prevented . | . . . . Kills | -11 -10 -9 -8 ------- Run | Yrd Mat Mat Mat Combat Hostiles Destroyed 28 | . 12 16 . Guns 12 | . 12 . . Cannons 2 | . . 2 . AOE 14 | . . 14 . Classes Destroyed 9 | . 8 1 . Worker 4 | . 4 . . Builder 2 | . 1 1 . Hauler 2 | . 2 . . Recycler 2 | . 1 1 . Operator 2 | . 1 1 . Watcher 2 | . 2 . . Swarmer 13 | . 5 8 . Grunt 13 | . 7 6 . Sentry 2 | . . 2 . Best Kill Streak 9 | . 5 9 . Combat Bots Only 7 | . 4 7 . Max Kills in Single Turn 5 | . 2 5 . Gunslinging 1 | . 1 . . Exploded 4 | . . 4 . Melee . | . . . . Uniques/NPCs Destroyed . | . . . . Combat | -11 -10 -9 -8 -------- Run | Yrd Mat Mat Mat Hostile Shots Fired 273 | . 84 110 79 Missed 80 | . 29 31 20 Damage Taken 2616 | . 557 1131 928 Core 1092 | . 151 376 565 Absorbed by Shields . | . . . . Core Remaining (%) 48 | 100 39 6 . Volleys Fired 104 | . 84 20 . Largest 2 | . 2 2 . Hottest 75 | . 60 75 . Shots Fired 193 | . 155 38 . Gun 158 | . 155 3 . Cannon 12 | . . 12 . Launcher 23 | . . 23 . Special . | . . . . Kinetic 150 | . 138 12 . Thermal 20 | . 17 3 . Explosive 23 | . . 23 . Electromagnetic . | . . . . Robot Hit Streak 17 | . 17 7 . Robot Miss Streak 5 | . 5 3 . Penetration Max . | . . . . Secondary Targets 4 | . 4 . . Max Gunslinging Chain 1 | . 1 . . Shots Hit Robots 115 | . 93 22 . Core Hits 63 | . 35 28 . Critical Kills 1 | . 1 . . Critical Parts Destroyed 2 | . 2 . . Critical Strikes 3 | . 3 . . Destroy 3 | . 3 . . Melee Attacks . | . . . . Impact . | . . . . Slashing . | . . . . Piercing . | . . . . Sneak Attacks . | . . . . Combat Hostiles . | . . . . Follow-up Attacks . | . . . . Damage Inflicted 2558 | . 1206 1352 . Guns 1218 | . 1206 12 . Cannons 107 | . . 107 . Explosions 1233 | . . 1233 . Melee . | . . . . Ramming . | . . . . Kinetic 1172 | . 1065 107 . Thermal 153 | . 141 12 . Explosive 1233 | . . 1233 . Electromagnetic . | . . . . Impact . | . . . . Slashing . | . . . . Piercing . | . . . . Highest Corruption 2 | . . 2 . Average Corruption 2 | . . 2 . Corruption Purged . | . . . . Corruption Blocked . | . . . . Effects 1 | . . 1 . Message Errors 1 | . . 1 . Overload Shots . | . . . . Overflow Damage 115 | . . 115 . Projectiles . | . . . . Explosions 115 | . . 115 . Melee . | . . . . Knockbacks . | . . . . Impact . | . . . . Kinetic . | . . . . Secondary . | . . . . Self-Inflicted Damage 116 | . . 116 . Shots 6 | . . 6 . Rammed . | . . . . Targets Rammed . | . . . . Kicked . | . . . . Crushed . | . . . . Highest Temperature 4 | . 2 4 . Average Temperature 2 | . 2 4 . Received Heat Transfer 1050 | . 198 303 549 Siege Activations . | . . . . Robots Corrupted . | . . . . Combat Hostiles . | . . . . Parts Fried . | . . . . Impact Corruptions . | . . . . Robots Melted . | . . . . Combat Hostiles . | . . . . Parts Melted 1 | . 1 . . Heat Transferred 350 | . 325 25 . Parts Sabotaged . | . . . . Parts Stolen . | . . . . Parts Stripped . | . . . . Power Chain Reactions . | . . . . Alert | -11 -10 -9 -8 ------- Run | Yrd Mat Mat Mat Peak Influence 558 | . 315 558 196 Initial 196 | . . 41 196 Average 183 | . 134 293 185 Maximum Alert Level 2 | . 1 2 . Low Security (%) 74 | 100 86 36 100 Level 1 15 | . 13 27 . Level 2 10 | . . 36 . Level 3 . | . . . . Level 4 . | . . . . Level 5 . | . . . . High Security . | . . . . Max Security . | . . . . Squads Dispatched 6 | . 3 2 1 Investigation 2 | . 1 1 . Extermination . | . . . . Reinforcement 4 | . 2 1 1 Assault . | . . . . Garrison . | . . . . Intercept . | . . . . Searches Triggered . | . . . . Construction Impeded . | . . . . Haulers Reinforced . | . . . . Active Scanning Responses . | . . . . Cargo Convoy Interrupts . | . . . . Stealth | -11 -10 -9 -8 --------- Run | Yrd Mat Mat Mat Distress Signals 3 | . 3 . . Communications Jammed . | . . . . Distress Signals . | . . . . Times Spotted 52 | . 26 21 5 Peak Tracking Total 7 | . 6 7 4 Tactical Retreats 3 | . 2 1 . Traps | -11 -10 -9 -8 ------- Run | Yrd Mat Mat Mat Traps Triggered 2 | . 1 1 . Indirectly . | . . . . Trap Hack Attempts . | . . . . Triggered . | . . . . Disarmed . | . . . . Reprogrammed . | . . . . Reused . | . . . . Traps Extracted . | . . . . Installed . | . . . . Triggered . | . . . . Machines | -11 -10 -9 -8 ---------- Run | Yrd Mat Mat Mat Machines Disabled 5 | . . 5 . Max in Single Turn 1 | . . 1 . Machines Repaired . | . . . . Machines Dismantled . | . . . . Machines Sabotaged . | . . . . Overloaded Fab Kills . | . . . . Hacking | -11 -10 -9 -8 --------- Run | Yrd Mat Mat Mat Machines Accessed 7 | . 4 3 . Terminals 7 | . 4 3 . Fabricators . | . . . . Repair Stations . | . . . . Recycling Units . | . . . . Scanalyzers . | . . . . Garrison Access . | . . . . Total Hacks 14 | . 8 6 . Successful 5 | . 3 2 . Failed 9 | . 5 4 . Catastrophic 2 | . 1 1 . Database Lockouts . | . . . . Manual . | . . . . Terminals 14 | . 8 6 . Fabricators . | . . . . Repair Stations . | . . . . Recycling Units . | . . . . Scanalyzers . | . . . . Garrison Access . | . . . . Terminal Hacks 5 | . 3 2 . Prototype ID Bank 1 | . 1 . . Locate Traps 1 | . . 1 . Hauler Manifests 1 | . 1 . . Zone Layout 2 | . 1 1 . Fabricator Hacks . | . . . . Repair Station Hacks . | . . . . Recycling Unit Hacks . | . . . . Scanalyzer . | . . . . Garrison Access Hacks . | . . . . Unauthorized Hacks . | . . . . Terminals . | . . . . Fabricators . | . . . . Repair Stations . | . . . . Recycling Units . | . . . . Scanalyzers . | . . . . Garrison Access . | . . . . Data Cores Recovered . | . . . . Used . | . . . . Hacking Detections 5 | . 2 3 . Full Trace Events 2 | . 1 1 . Feedback Events . | . . . . Feedback Blocked . | . . . . Robot Schematics Acquired . | . . . . Robots Built . | . . . . Authchips . | . . . . Time . | . . . . Total Robot Build Rating . | . . . . Part Schematics Acquired . | . . . . Parts Built . | . . . . Authchips . | . . . . Time . | . . . . Total Part Build Rating . | . . . . Parts Repaired . | . . . . Time . | . . . . Parts Recycled . | . . . . Recycled Matter . | . . . . Retrieved Matter . | . . . . Retrieved Components . | . . . . Parts Scanalyzed . | . . . . Part Schematics Acquired . | . . . . Parts Damaged . | . . . . Bothacking | -11 -10 -9 -8 ------------ Run | Yrd Mat Mat Mat Used RIF Installer . | . . . . Robots Hacked . | . . . . Non-combat . | . . . . Combat . | . . . . Robot Hacks Applied . | . . . . Relay Couplers Released . | . . . . Fabnet Peak Effective % . | . . . . Robots Rewired . | . . . . Allies Hacked . | . . . . Hacks Repelled . | . . . . Allies | -11 -10 -9 -8 -------- Run | Yrd Mat Mat Mat Total Allies . | . . . . Largest Group . | . . . . Highest-Rated Group . | . . . . Highest-Rated Ally . | . . . . Total Orders . | . . . . Ally Attacks . | . . . . Total Damage . | . . . . Kills . | . . . . Allies Corrupted . | . . . . Allies Melted . | . . . . Intel | -11 -10 -9 -8 ------- Run | Yrd Mat Mat Mat Robot Analysis Total . | . . . . Derelict Logs Recovered . | . . . . Drone Launches . | . . . . Drone Recoveries . | . . . . Exploration | -11 -10 -9 -8 ------------- Run | Yrd Mat Mat Mat Turns Passed 1911 | 40 1060 535 276 Spaces Moved 1262 | 35 776 357 94 Core 24 | 4 . 3 17 Treads 125 | . . 48 77 Legs . | . . . . Wheels 1113 | 31 776 306 . Hover . | . . . . Flight . | . . . . Fastest Speed 50 | 50 80 100 160 Average Speed 108 | 76 88 120 241 Slowest Speed 400 | 80 105 400 350 Overloaded Moves . | . . . . Propulsion Burnouts . | . . . . Robots Hopped . | . . . . Cave-ins Triggered . | . . . . Exploration Rate (%) 34 | 4 83 40 9 Regions Visited 3 Branch Regions . Pre-discovered Areas . | . . . . Known Exits Taken . | . . . . Unknown Exits Taken 3 | 1 1 1 . Scrap Searched . | . . . . Spaces Dug . | . . . . Terrain Destroyed 164 | . . 164 . Melee . | . . . . Projectile . | . . . . AOE 164 | . . 164 . Terrain Rammed . | . . . . Walls Destroyed . | . . . . Machines Disabled . | . . . . Actions | -11 -10 -9 -8 --------- Run | Yrd Mat Mat Mat Total 1611 | 48 994 425 144 Wait 176 | . 107 29 40 Move 1259 | 34 775 356 94 Hop . | . . . . Pick Up 34 | 8 12 8 6 Fast Attach . | . . . . Attach 17 | 6 4 5 2 Detach 1 | . . . 1 Swap 10 | . 6 4 . Drop 10 | . 6 3 1 Fire 104 | . 84 20 . Melee . | . . . . Ram . | . . . . Kick . | . . . . Crush . | . . . . Escape Stasis . | . . . . Rewire . | . . . . Trap . | . . . . Miscellaneous . | . . . . Route ------- -11/Scrapyard -10/Materials (discovered 2 exits: *Mat / [*Min]) -9/Materials -8/Materials History --------- Turn | Location | Event 8 | -11/Scrapyard | Discovered new exit (range 16) 41 | -11/Scrapyard | Entered Materials 307 | -10/Materials | Build established: Mutant 527 | -10/Materials | Discovered new exit (range 16) 642 | -10/Materials | Discovered new exit (range 12) 801 | -10/Materials | Core integrity fell below 50% 974 | -10/Materials | Build established: Scavenger-Mutant 1101 | -10/Materials | Entered another Materials area 1101 | -9/Materials | Evolved 2 slots: Power x1, Utility x1 1441 | -9/Materials | Destroyed 7 combat bots 1541 | -9/Materials | Discovered new exit (range 11) 1543 | -9/Materials | Core integrity fell below 50% 1632 | -9/Materials | Core integrity fell below 20% 1636 | -9/Materials | Entered another Materials area 1636 | -8/Materials | Evolved 2 slots: Propulsion x1, Utility x1 1658 | -8/Materials | Lost 4 parts (2n1u1w) 1803 | -8/Materials | Build established: Mutant 1857 | -8/Materials | Core integrity fell below 50% 1906 | -8/Materials | Core integrity fell below 20% 1912 | -8/Materials | Destroyed by G-47 Trooper with Particle Gun Last Messages --------------- T-07 Excavator is excavating. U-05 Engineer lays Concrete. Connecting with Scanalyzer... Current location identified: Materials Dropped Sml. Laser. Acquired Arm. Treads. Acquired Shock Rifle. Acquired Weight Redist. System. Critical hit (Burn: +37). Heat Sink destroyed. ALERT: Hostiles spotted, dispatching reinforcements to Terminal M007. K-01 Serf collects debris. Acquired Plasma Cutter. Lgt. Treads destroyed. Plasma Cutter destroyed. Acquired Lgt. EM Pulse Cannon. Acquired Missile Launcher. Atomic Centrifuge disabled. G-47 Trooper suffers critical hit (Burn). Map ----- +----------------------------------------------------+ | ??????????????????????????????????????????? | | ??????????????????????????????????????????? | | ??????????????????????????????????????????? | | ??????????????????????????????????????????? | | ??????????????????????????????????????????? | | ??????????????????????????????????????????? | | ??????????????????????????????????????????? | | ??????????????????????????????????????????? | | ??????????????????????????????????????????? | | ??????????????????????????????????????????? | | ??????????????????????????????????????????? | | ??????????????????????????????????????????? | | ??????????????????????????????????????????? | | ??????????????????????????????????????????? | | ??????????????????????????????????????????? | | ??????????????????????????????????????????? | | ??????????????????????????????????????????? | | ??????????????????????????????????????????? | | ??????????????????????????????????????????? | | ???????????????????##########?????????????? | | ???????????????????# #?????????????? | | ???????????????????# """ #?????????????? | | ????????????????#??# "" #?????????????? | | ????????????????# ?# "" #????????#????? | | ????????????????# ## ########/##???? | | ????????????????# @# "" # #???? | | ????????????????# g """ ] + #???? | | ????????????????#t # """ # """"""" #???? | | ????????????????#gg#= # """"""" #???? | | ????????????????#g ########## """"""" #???? | | ????????????????! ????????# """"""" #???? | | ??????????????? T ????????# """"""" #???? | | ?????????????? "" ????????# #???? | | ?????????????### ???????####+########### | | ???????????????#####???????# | | ???????????????????????????+ | | ???????????????????????????# | | ???????????????????????????#### ###### | | ??????????????????????????????# #???# | | ??????????????????????????????#!!==!!#???# | | ??????????????????????????????#!!==!!#???# | | ??????????????????????????????########???# | | ?????????????????????????????????????????# | | ?????????????????????????????????????????# | | ?????????????????????????????????????????## | | ??????????????????????????????????????????? | | ??????????????????????????????????????????? | | ??????????????????????????????????????????? | | ??????????????????????????????????????????? | | ??????????????????????????????????????????? | +----------------------------------------------------+ Best States ------------- Heat Dissipation 52 Energy Generation 21 Energy Capacity 325 Matter Stores 300 Matter Capacity 300 Sight Range 16 Terrain Scan Density 10 Evasion (%) 44 Recoil Reduction 2 Item Schematics ----------------- None Robot Schematics ------------------ None Fabricated ------------ Nothing Alien Tech Used ----------------- None Achievements -------------- None Challenges ------------ None Game ------ Seed ChainCompactTerrabomb Manual? 0 Play Time 00:18:39 Cumulative 18.8 hours Start 2024.04.16 @ 01:16:59 End 2024.04.16 @ 03:42:03 Sessions 2 Manual Loads 0 Difficulty Rogue Special Mode None Game No. 44 Rogue 42 Adventurer 2 Explorer 0 Win Type - Total 0 Types 0/0/0/0/0/0/0/0/0 Lore% 17 Gallery% 26 Achievement% 19 Wizard Run 0 Options --------- Layout 1 ASCII 0 Keyboard 0 Movement Mouse Keybinds 0 Fullscreen 1 Font 16/SmallcapsGlow Map View 27x19 Zoom Use 99% Tactical HUD 0 Map Filters NONE Filters NONE Steam 1 RUN: 3be5ae34-3bce-48e2-96ba-0896d11a0f16